Cogmind - Beta 13 @@@ ROGUE MODE // 2024.04.06 @ 15:35:08 Player: SpaceWalrus Result: Destroyed by G-34 Mercenary with Small Laser Performance ------------- Evolutions (1) 500 Regions Visited (2) 400 Robots Destroyed (22) 110 Value Destroyed (522) 522 Prototype IDs (2) 40 Alien Tech Used (0) 0 Bonus (0) 0 TOTAL SCORE: 1572 Bonus ------- None Cogmind --------- Core Integrity 0/400 Matter 144/300 Energy 100/100 System Corruption 0% Temperature Cool (6) Movement Core (450) Ox8 Location -9/Materials Parts ------- > --- POWER (1) -------- (None) > --- PROPULSION (2) --- (None) > --- UTILITY (4) ------ Large Storage Unit Light Armor Plating Light Armor Plating > --- WEAPON (2) ------- (None) > --- INVENTORY (15) --- Improved Ion Engine Cooling System High-capacity Matter Pod (40) Machine Analyzer Improved Terrain Scanner Utility Shielding EM Shotgun EM Shotgun Improved Light Cannon Hammer Mining Claw Peak State ------------ > --- POWER ------------ Improved Ion Engine > --- PROPULSION ------- Wheel Compact Wheel > --- UTILITY ---------- Large Storage Unit Improved Terrain Scanner ECM Suite Light Armor Plating > --- WEAPON ----------- EM Shotgun Improved Light Cannon > --- INVENTORY -------- Improved Ion Engine Improved Ion Engine Cooling System High-capacity Matter Pod Machine Analyzer Utility Shielding Light Armor Plating Light Armor Plating EM Shotgun Improved Light Cannon Grenade Launcher Hammer Mining Claw [Rating: 16] Favorites ----------- Power Improved Ion Engine Engine Improved Ion Engine Propulsion Compact Wheel Leg Aluminum Leg Wheel Compact Wheel Utility Improved Terrain Scanner Device Improved Terrain Scanner Storage Large Storage Unit Protection Light Armor Plating Weapon EM Pulse Gun Energy Gun EM Pulse Gun Energy Cannon Particle Cannon Ballistic Gun Assault Rifle Ballistic Cannon Improved Light Cannon Launcher Grenade Launcher Build | -11 -10 -9 ------- Run | Yrd Mat Mat Slots Evolved 2 | . . 2 Power . | . . . Propulsion . | . . . Utility 2 | . . 2 Weapon . | . . . Parts Attached 39 | 8 15 16 Power 4 | 1 2 1 Engine 4 | 1 2 1 Core . | . . . Reactor . | . . . Propulsion 6 | 2 3 1 Treads . | . . . Leg 2 | 2 . . Wheel 4 | . 3 1 Hover . | . . . Flight . | . . . Utility 10 | 2 1 7 Device 3 | 1 . 2 Storage 3 | 1 1 1 Processor . | . . . Hackware . | . . . Protection 4 | . . 4 Artifact . | . . . Weapon 19 | 3 9 7 Energy Gun 9 | 2 5 2 Energy Cannon 1 | . 1 . Ballistic Gun 2 | 1 1 . Ballistic Cannon 2 | . . 2 Launcher 5 | . 2 3 Special Weapon . | . . . Impact Weapon . | . . . Slashing Weapon . | . . . Piercing Weapon . | . . . Special Melee Weapon . | . . . Unidentified Prototypes . | . . . Parts Lost 11 | . 1 10 Power 2 | . . 2 Propulsion 3 | . . 3 Utility 2 | . . 2 Weapon 4 | . 1 3 Highest Loss Streak 8 | . 1 8 To Critical Strikes . | . . . Average Slot Usage (%) 97 | . 99 90 Engine 12 | . 13 10 Leg 2 | . 3 . Wheel 22 | . 24 17 Device 15 | . 14 19 Storage 13 | . 14 12 Protection 2 | . . 10 Energy Gun 14 | . 18 3 Energy Cannon 1 | . 1 . Ballistic Cannon 2 | . . 7 Launcher 8 | . 8 8 Naked Turns . | . . . Heaviest Build 42 | 15 35 42 Greatest Support 32 | 20 32 32 Greatest Overweight (x) 10 | 1 1 10 Average Overweight (x) . | . . 1 Largest Inventory Capacity 15 | 8 15 15 Average Capacity 13 | 7 13 15 Most Carried 15 | 6 15 14 Average Carried 10 | 3 10 12 Final Capacity 15 | 8 15 15 Final Carried 15 | 4 15 11 Class Distribution -------------------- 100% | Mutant Dominant Class ---------------- Mutant | -10/Materials Mutant | -9/Materials Resources | -11 -10 -9 ----------- Run | Yrd Mat Mat Matter Collected 690 | 263 317 110 Remotely . | . . . Salvage Created 592 | 20 377 195 Parts 45 | 4 28 13 Haulers Intercepted 2 | . 2 . Recyclers Shooed . | . . . Parts Field Recycled . | . . . Retrieved Matter . | . . . Parts Self-Destructed . | . . . Prevented . | . . . Kills | -11 -10 -9 ------- Run | Yrd Mat Mat Combat Hostiles Destroyed 13 | . 7 6 Guns 5 | . 5 . Cannons 1 | . . 1 AOE 7 | . 2 5 Classes Destroyed 9 | 1 5 3 Builder 2 | . 1 1 Tunneler 1 | 1 . . Hauler 2 | . 2 . Mechanic 1 | . . 1 Watcher 3 | . 3 . Swarmer 3 | . 3 . Grunt 7 | . 4 3 Brawler 1 | . . 1 Sentry 2 | . . 2 Best Kill Streak 7 | 1 7 4 Combat Bots Only 5 | . 5 4 Max Kills in Single Turn 3 | 1 1 3 Gunslinging . | . . . Exploded 2 | . 1 2 Melee . | . . . Uniques/NPCs Destroyed . | . . . Combat | -11 -10 -9 -------- Run | Yrd Mat Mat Hostile Shots Fired 168 | . 33 135 Missed 49 | . 11 38 Damage Taken 1538 | . 321 1217 Core 479 | . 68 411 Absorbed by Shields . | . . . Core Remaining (%) 86 | 100 72 . Volleys Fired 49 | 1 29 19 Largest 2 | 2 2 2 Hottest 98 | 80 98 90 Shots Fired 87 | 2 53 32 Gun 50 | 2 46 2 Cannon 16 | . 1 15 Launcher 21 | . 6 15 Special . | . . . Kinetic 14 | . . 14 Thermal 2 | . 1 1 Explosive 21 | . 6 15 Electromagnetic 50 | 2 46 2 Robot Hit Streak 8 | 1 8 6 Robot Miss Streak 4 | . 2 4 Penetration Max . | . . . Secondary Targets . | . . . Shots Hit Robots 53 | 1 36 16 Core Hits 41 | 1 20 20 Critical Kills . | . . . Critical Parts Destroyed . | . . . Critical Strikes . | . . . Melee Attacks . | . . . Impact . | . . . Slashing . | . . . Piercing . | . . . Sneak Attacks . | . . . Combat Hostiles . | . . . Follow-up Attacks . | . . . Damage Inflicted 1500 | 12 700 788 Guns 465 | 12 441 12 Cannons 168 | . . 168 Explosions 867 | . 259 608 Melee . | . . . Ramming . | . . . Kinetic 168 | . . 168 Thermal . | . . . Explosive 867 | . 259 608 Electromagnetic 465 | 12 441 12 Impact . | . . . Slashing . | . . . Piercing . | . . . Highest Corruption . | . . . Average Corruption . | . . . Corruption Purged . | . . . Corruption Blocked . | . . . Overload Shots . | . . . Overflow Damage 10 | . . 10 Projectiles . | . . . Explosions 10 | . . 10 Melee . | . . . Knockbacks 2 | . . 2 Impact . | . . . Kinetic 1 | . . 1 Secondary 1 | . . 1 Self-Inflicted Damage 78 | . 27 51 Shots 3 | . 1 2 Rammed . | . . . Targets Rammed . | . . . Kicked . | . . . Crushed . | . . . Highest Temperature 214 | 18 214 57 Average Temperature 50 | 12 66 21 Received Heat Transfer 747 | . 144 603 Siege Activations . | . . . Robots Corrupted . | . . . Combat Hostiles . | . . . Parts Fried 1 | . 1 . Impact Corruptions . | . . . Robots Melted . | . . . Combat Hostiles . | . . . Parts Melted . | . . . Heat Transferred . | . . . Parts Sabotaged . | . . . Parts Stolen . | . . . Parts Stripped . | . . . Power Chain Reactions . | . . . Alert | -11 -10 -9 ------- Run | Yrd Mat Mat Peak Influence 308 | 5 152 308 Initial 5 | . 3 5 Average 93 | 2 66 190 Maximum Alert Level 1 | . . 1 Low Security (%) 88 | 100 100 52 Level 1 11 | . . 47 Level 2 . | . . . Level 3 . | . . . Level 4 . | . . . Level 5 . | . . . High Security . | . . . Max Security . | . . . Squads Dispatched 4 | . . 4 Investigation 1 | . . 1 Extermination . | . . . Reinforcement 3 | . . 3 Assault . | . . . Garrison . | . . . Intercept . | . . . Searches Triggered . | . . . Construction Impeded . | . . . Haulers Reinforced . | . . . Active Scanning Responses . | . . . Cargo Convoy Interrupts . | . . . Stealth | -11 -10 -9 --------- Run | Yrd Mat Mat Distress Signals 2 | . 1 1 Communications Jammed . | . . . Distress Signals . | . . . Times Spotted 41 | . 10 31 Peak Tracking Total 14 | . 5 14 Tactical Retreats 6 | . . 6 Traps | -11 -10 -9 ------- Run | Yrd Mat Mat Traps Triggered 3 | . 2 1 Indirectly . | . . . Trap Hack Attempts . | . . . Triggered . | . . . Disarmed . | . . . Reprogrammed . | . . . Reused . | . . . Traps Extracted . | . . . Installed . | . . . Triggered . | . . . Machines | -11 -10 -9 ---------- Run | Yrd Mat Mat Machines Disabled 2 | . 1 1 Max in Single Turn 1 | . 1 1 Machines Repaired . | . . . Machines Dismantled . | . . . Machines Sabotaged . | . . . Overloaded Fab Kills . | . . . Hacking | -11 -10 -9 --------- Run | Yrd Mat Mat Machines Accessed 5 | . 5 . Terminals 5 | . 5 . Fabricators . | . . . Repair Stations . | . . . Recycling Units . | . . . Scanalyzers . | . . . Garrison Access . | . . . Total Hacks 12 | . 12 . Successful 8 | . 8 . Failed 4 | . 4 . Catastrophic . | . . . Database Lockouts . | . . . Manual . | . . . Terminals 12 | . 12 . Fabricators . | . . . Repair Stations . | . . . Recycling Units . | . . . Scanalyzers . | . . . Garrison Access . | . . . Terminal Hacks 8 | . 8 . Record 2 | . 2 . Prototype ID Bank 1 | . 1 . Alert Level 2 | . 2 . Dispatch Records 1 | . 1 . Investigation Status 1 | . 1 . Zone Layout 1 | . 1 . Fabricator Hacks . | . . . Repair Station Hacks . | . . . Recycling Unit Hacks . | . . . Scanalyzer . | . . . Garrison Access Hacks . | . . . Unauthorized Hacks . | . . . Terminals . | . . . Fabricators . | . . . Repair Stations . | . . . Recycling Units . | . . . Scanalyzers . | . . . Garrison Access . | . . . Data Cores Recovered . | . . . Used . | . . . Hacking Detections 2 | . 2 . Full Trace Events 1 | . 1 . Feedback Events . | . . . Feedback Blocked . | . . . Robot Schematics Acquired . | . . . Robots Built . | . . . Authchips . | . . . Time . | . . . Total Robot Build Rating . | . . . Part Schematics Acquired . | . . . Parts Built . | . . . Authchips . | . . . Time . | . . . Total Part Build Rating . | . . . Parts Repaired . | . . . Time . | . . . Parts Recycled . | . . . Recycled Matter . | . . . Retrieved Matter . | . . . Retrieved Components . | . . . Parts Scanalyzed . | . . . Part Schematics Acquired . | . . . Parts Damaged . | . . . Bothacking | -11 -10 -9 ------------ Run | Yrd Mat Mat Used RIF Installer . | . . . Robots Hacked . | . . . Non-combat . | . . . Combat . | . . . Robot Hacks Applied . | . . . Relay Couplers Released . | . . . Fabnet Peak Effective % . | . . . Robots Rewired . | . . . Allies Hacked . | . . . Hacks Repelled . | . . . Allies | -11 -10 -9 -------- Run | Yrd Mat Mat Total Allies . | . . . Largest Group . | . . . Highest-Rated Group . | . . . Highest-Rated Ally . | . . . Total Orders . | . . . Ally Attacks . | . . . Total Damage . | . . . Kills . | . . . Allies Corrupted . | . . . Allies Melted . | . . . Intel | -11 -10 -9 ------- Run | Yrd Mat Mat Robot Analysis Total . | . . . Derelict Logs Recovered . | . . . Drone Launches . | . . . Drone Recoveries . | . . . Exploration | -11 -10 -9 ------------- Run | Yrd Mat Mat Turns Passed 1796 | 96 1258 442 Spaces Moved 1371 | 64 1015 292 Core 25 | 18 . 7 Treads . | . . . Legs 128 | 46 82 . Wheels 1218 | . 933 285 Hover . | . . . Flight . | . . . Fastest Speed 50 | 50 100 105 Average Speed 113 | 112 110 123 Slowest Speed 550 | 120 120 550 Overloaded Moves . | . . . Propulsion Burnouts . | . . . Robots Hopped . | . . . Cave-ins Triggered . | . . . Exploration Rate (%) 41 | 5 97 22 Regions Visited 2 Branch Regions . Pre-discovered Areas . | . . . Known Exits Taken . | . . . Unknown Exits Taken 2 | 1 1 . Scrap Searched . | . . . Spaces Dug . | . . . Terrain Destroyed 152 | . 36 116 Melee . | . . . Projectile . | . . . AOE 152 | . 36 116 Terrain Rammed . | . . . Walls Destroyed . | . . . Machines Disabled . | . . . Actions | -11 -10 -9 --------- Run | Yrd Mat Mat Total 1523 | 85 1096 342 Wait 17 | 2 9 6 Move 1369 | 63 1014 292 Hop . | . . . Pick Up 37 | 11 21 5 Fast Attach 2 | . 2 . Attach 17 | 7 3 7 Detach 1 | . . 1 Swap 20 | 1 10 9 Drop 11 | . 8 3 Fire 49 | 1 29 19 Melee . | . . . Ram . | . . . Kick . | . . . Crush . | . . . Escape Stasis . | . . . Rewire . | . . . Trap . | . . . Miscellaneous . | . . . Route ------- -11/Scrapyard -10/Materials (discovered 5 exits: [*Mat x3] / [*Min x2]) -9/Materials (discovered 1 exit: [*Mat]) History --------- Turn | Location | Event 6 | -11/Scrapyard | Discovered new exit (range 15) 97 | -11/Scrapyard | Entered Materials 305 | -10/Materials | Build established: Mutant 390 | -10/Materials | Discovered new exit (range 10) 438 | -10/Materials | Discovered new exit (range 12) 458 | -10/Materials | Discovered new exit (range 11) 600 | -10/Materials | Discovered new exit (range 16) 831 | -10/Materials | Discovered new exit (range 8) 1355 | -10/Materials | Entered another Materials area 1355 | -9/Materials | Evolved 2 slots: Utility x2 1696 | -9/Materials | Discovered new exit (range 10) 1774 | -9/Materials | Core integrity fell below 50% 1777 | -9/Materials | Core integrity fell below 20% 1797 | -9/Materials | Destroyed by G-34 Mercenary with Small Laser Last Messages --------------- Destroyed Heat Sink. The unstable cave ceiling collapses. G-34 Mercenary knocked back. Lgt. Armor Plating destroyed. Triggered Alarm Trap. An alarm sounds. ALERT: Alarm triggered, dispatching investigation squad. Wheel destroyed. Grenade Launcher destroyed. Imp. Ion Engine destroyed. Com. Wheel destroyed. Imp. Light Cannon destroyed. G-34 Mercenary destroyed. ECM Suite destroyed. Imp. Ion Engine destroyed. ALERT: Hostiles spotted, dispatching reinforcements to Terminal M006. G-34 Mercenary heat damages Ion Engine. R-06 Scavenger collects Ion Engine. Map ----- +----------------------------------------------------+ | ####?????#??#####???## ##?????????#??? | | ################## ##### % ######?????#? | | #??????? | | ################## #### % ## < #????#?? | | # ######??#???## ###?### #?# #??????? | | ##?#??????? ??# #????## ##??# ##?????? | | ##### ?????????" ##/#########?????# #??????? | | ?? ? ?#??????"?# #???????# #??????? | | ?????????? ???"""# #??#????# #?###### | | ? ?????????? ????# #?????### #? # | | ??? ??????? ????# """ #????? ## # # | | ??????????? ????# """"" #????? ## # ""# | | ?????????? ??????# """"" #???? ## + Y"# | | ??????????? ???"?# """"" #???? ?# # ""# | | ? ? ? ???????????# """ #???" ## # [ # | | ?? ? ?????????? ?# #??? ?## #######? | | ??#???????#?##+######+########+### #???#?? | | ?????? #?????? | | ?????? %[ #?????? | | ?????? ! #?????? | | ??????? #####+##### #### #?????? | | ??????? ?# """ # #??#######?????? | | ???????? ??# """ # #????#?????????? | | ???????? ??? # """ g #??????????????? | | ?????????##?????# g# #???????? | | ????????????#???# """ @# #???????? | | ????????????????# "R # #???????? | | ????????????????# """ * # #####+##???????? | | ????????????????# w # #??????????????? | | ????????????????########g## #??????????????? | | ??????????????????????? ?/ +??????????????? | | ??????????????????????? ?# #??????????????? | | ?????????????????????? ?# #??????????????? | | ?????????????????????? ?? #??????????????? | | ??????????????????????###?? #??????????????? | | ??????????????????????????? #??????????????? | | ??????????????????????????? #??????????????? | | ??????????????????????????? ???????????????? | | ?????????????????????????????????????????????? | | ?????????????????????????????????????????????? | | ?????????????????????????????????????????????? | | ?????????????????????????????????????????????? | | ?????????????????????????????????????????????? | | ?????????????????????????????????????????????? | | ?????????????????????????????????????????????? | | ?????????????????????????????????????????????? | | ?????????????????????????????????????????????? | | ?????????????????????????????????????????????? | | ?????????????????????????????????????????????? | | ?????????????????????????????????????????????? | +----------------------------------------------------+ Best States ------------- Heat Dissipation 28 Energy Generation 12 Energy Capacity 265 Matter Stores 370 Matter Capacity 500 Sight Range 16 Terrain Scan Range 16 Terrain Scan Density 10 ECM Strength 1 Armor Coverage 300 Utility Shielding 33 Evasion (%) 55 Item Schematics ----------------- None Robot Schematics ------------------ None Fabricated ------------ Nothing Alien Tech Used ----------------- None Achievements -------------- None Challenges ------------ None Game ------ Seed SplicePropulsionLattice Manual? 0 Play Time 00:24:35 Cumulative 3.3 hours Start 2024.04.06 @ 15:11:25 End 2024.04.06 @ 15:35:08 Sessions 1 Manual Loads 0 Difficulty Rogue Special Mode None Game No. 6 Rogue 6 Adventurer 0 Explorer 0 Win Type - Total 0 Types 0/0/0/0/0/0/0/0/0 Lore% 11 Gallery% 9 Achievement% 8 Wizard Run 0 Options --------- Layout 1 ASCII 0 Keyboard 0 Movement Numpad Keybinds 0 Fullscreen 1 Font 24/Smallcaps Map View 50x40 Zoom Use 0% Tactical HUD 0 Map Filters NONE Filters NONE Steam 1 RUN: 3476814d-aab1-4761-9215-667aee861a8a